Cogmind - Beta 14 @@@ ROGUE MODE // 2024.08.22 @ 16:25:28 Player: celerysam Result: Destroyed by Y-45 Defender with Heavy Assault Rifle Performance ------------- Evolutions (2) 1000 Regions Visited (3) 600 Robots Destroyed (21) 105 Value Destroyed (790) 790 Prototype IDs (1) 20 Alien Tech Used (0) 0 Bonus (222) 222 TOTAL SCORE: 2737 Bonus ------- Pacifist 200 High Alert Combat Kills 22 Cogmind --------- Core Integrity 0/550 Matter 290/300 Energy 99/100 System Corruption 0% Temperature Cool (9) Movement Core (50) Location -8/Materials Parts ------- > --- POWER (2) -------- (None) > --- PROPULSION (4) --- (None) > --- UTILITY (3) ------ Machine Analyzer > --- WEAPON (2) ------- (None) > --- INVENTORY (5) ---- Advanced Weight Redist. System Peak State ------------ > --- POWER ------------ Ion Engine > --- PROPULSION ------- Light Treads Light Treads Improved Treads > --- UTILITY ---------- Small Storage Unit Machine Analyzer Advanced Targeting Computer > --- WEAPON ----------- Assault Cannon Flail > --- INVENTORY -------- Ion Engine Improved Treads Compact Wheel Advanced Weight Redist. System Light EM Pulse Cannon Particle Cannon [Rating: 18] Favorites ----------- Power Light Ion Engine Engine Light Ion Engine Power Core Light Nuclear Core Propulsion Light Treads Treads Light Treads Leg Aluminum Leg Wheel Compact Wheel Hover Unit Improved Hover Unit Utility Small Storage Unit Storage Small Storage Unit Processor Machine Analyzer Protection Propulsion Shielding Weapon Flail Energy Gun Improved Medium Laser Energy Cannon Particle Cannon Ballistic Gun Light Assault Rifle Ballistic Cannon Assault Cannon Launcher Rocket Launcher Impact Weapon Flail Build | -11 -10 -9 -8 ------- Run | Yrd Mat Mat Mat Slots Evolved 4 | . . 2 2 Power 1 | . . . 1 Propulsion 2 | . . 2 . Utility 1 | . . . 1 Weapon . | . . . . Parts Attached 33 | 6 5 6 16 Power 4 | 1 . . 3 Engine 3 | 1 . . 2 Core 1 | . . . 1 Reactor . | . . . . Propulsion 13 | 2 . 4 7 Treads 4 | . . . 4 Leg 1 | . . . 1 Wheel 4 | 2 . . 2 Hover 4 | . . 4 . Flight . | . . . . Utility 6 | 1 2 1 2 Device . | . . . . Storage 1 | 1 . . . Processor 4 | . 2 1 1 Hackware . | . . . . Protection 1 | . . . 1 Artifact . | . . . . Weapon 10 | 2 3 1 4 Energy Gun 2 | 1 1 . . Energy Cannon 3 | . . . 3 Ballistic Gun 2 | 1 1 . . Ballistic Cannon 1 | . . . 1 Launcher 1 | . . 1 . Special Weapon . | . . . . Impact Weapon 1 | . 1 . . Slashing Weapon . | . . . . Piercing Weapon . | . . . . Special Melee Weapon . | . . . . Unidentified Prototypes 1 | . 1 . . Parts Lost 23 | . . 8 15 Power 4 | . . 1 3 Propulsion 9 | . . 4 5 Utility 4 | . . 1 3 Weapon 6 | . . 2 4 Highest Loss Streak 14 | . . 8 14 To Critical Strikes . | . . . . Average Slot Usage (%) 79 | . 89 84 72 Engine 9 | . 14 9 7 Treads 12 | . . . 21 Wheel 9 | . 28 1 3 Hover 6 | . . 31 . Storage 10 | . 14 11 9 Processor 9 | . 4 10 11 Protection 1 | . . . 2 Energy Gun 5 | . 14 8 . Energy Cannon 2 | . . . 4 Ballistic Gun 2 | . 9 . . Ballistic Cannon 1 | . . . 2 Impact Weapon 7 | . 4 11 8 Peak Build Rating 18 | 6 12 17 18 Average Rating 12 | 4 8 14 14 On Entrance 6 | . 6 11 7 Naked Turns . | . . . . Heaviest Build 18 | 11 13 13 18 Greatest Support 63 | 32 32 28 63 Greatest Overweight (x) 5 | . . 2 5 Average Overweight (x) . | . . . . Largest Inventory Capacity 8 | 8 8 8 8 Average Capacity 7 | 7 8 8 8 Most Carried 8 | 6 8 8 7 Average Carried 5 | 3 7 7 4 Final Capacity 8 | 8 8 8 5 Final Carried 8 | 6 8 8 1 Class Distribution -------------------- 100% | Mutant Dominant Class ---------------- Mutant | -10/Materials Mutant | -9/Materials Mutant | -8/Materials Resources | -11 -10 -9 -8 ----------- Run | Yrd Mat Mat Mat Matter Collected 619 | 169 . 91 359 Remotely . | . . . . Salvage Created 678 | . . 266 412 Parts 26 | . . 14 12 Haulers Intercepted . | . . . . Recyclers Shooed . | . . . . Parts Field Recycled . | . . . . Retrieved Matter . | . . . . Parts Self-Destructed . | . . . . Prevented . | . . . . Kills | -11 -10 -9 -8 ------- Run | Yrd Mat Mat Mat Combat Hostiles Destroyed 20 | . . 9 11 Melee 3 | . . 1 2 Cannons 7 | . . . 7 AOE 6 | . . 6 . Classes Destroyed 5 | . . 4 1 Builder 1 | . . 1 . Swarmer 3 | . . 3 . Grunt 14 | . . 4 10 Brawler 1 | . . . 1 Sentry 2 | . . 2 . Best Kill Streak 8 | . . 8 4 Combat Bots Only 7 | . . 7 4 Max Kills in Single Turn 4 | . . 4 1 Gunslinging . | . . . . Exploded 3 | . . 3 . Melee 1 | . . 1 1 Uniques/NPCs Destroyed . | . . . . Combat | -11 -10 -9 -8 -------- Run | Yrd Mat Mat Mat Hostile Shots Fired 254 | . 3 103 148 Missed 66 | . . 31 35 Damage Taken 2861 | . 36 826 1999 Core 900 | . . 349 551 Absorbed by Shields . | . . . . Redirected to Shielding 53 | . . . 53 Core Remaining (%) 70 | 100 100 12 . Volleys Fired 41 | . 1 3 37 Largest 2 | . 2 1 1 Hottest 70 | . 70 33 68 Shots Fired 42 | . 2 3 37 Gun 2 | . 2 . . Cannon 37 | . . . 37 Launcher 3 | . . 3 . Special . | . . . . Kinetic 33 | . 1 . 32 Thermal 2 | . 1 . 1 Explosive 3 | . . 3 . Electromagnetic 4 | . . . 4 Robot Hit Streak 11 | . 2 . 11 Robot Miss Streak 1 | . . 1 1 Penetration Max . | . . . . Secondary Targets . | . . . . Shots Hit Robots 51 | . 2 8 41 Core Hits 24 | . . 9 15 Critical Kills 2 | . . 1 1 Critical Parts Destroyed 5 | . . 4 1 Critical Strikes 8 | . . 5 3 Blast 1 | . . . 1 Smash 7 | . . 5 2 Melee Attacks 26 | . 1 11 14 Impact 26 | . 1 11 14 Slashing . | . . . . Piercing . | . . . . Sneak Attacks . | . . . . Combat Hostiles . | . . . . Follow-up Attacks . | . . . . Damage Inflicted 1792 | . 22 646 1124 Guns 22 | . 22 . . Cannons 777 | . . . 777 Explosions 395 | . . 395 . Melee 598 | . . 251 347 Ramming . | . . . . Kinetic 672 | . 9 . 663 Thermal 34 | . 13 . 21 Explosive 395 | . . 395 . Electromagnetic 93 | . . . 93 Impact 598 | . . 251 347 Slashing . | . . . . Piercing . | . . . . Highest Corruption . | . . . . Average Corruption . | . . . . Corruption Purged . | . . . . Corruption Blocked . | . . . . Overload Shots . | . . . . Overflow Damage 213 | . . 176 37 Projectiles . | . . . . Explosions 38 | . . 38 . Melee 175 | . . 138 37 Knockbacks 11 | . . . 11 Impact 1 | . . . 1 Kinetic 9 | . . . 9 Secondary 1 | . . . 1 Self-Inflicted Damage 47 | . . 47 . Shots 2 | . . 2 . Rammed . | . . . . Targets Rammed . | . . . . Kicked . | . . . . Crushed . | . . . . Highest Temperature 60 | . 30 10 60 Average Temperature 16 | . 18 5 16 Received Heat Transfer 1326 | . 18 318 990 Siege Activations . | . . . . Robots Corrupted 4 | . . 2 2 Combat Hostiles 4 | . . 2 2 Parts Fried 9 | . . 5 4 Impact Corruptions 6 | . . 4 2 Robots Melted . | . . . . Combat Hostiles . | . . . . Parts Melted . | . . . . Heat Transferred 74 | . 37 . 37 Parts Sabotaged . | . . . . Parts Stolen . | . . . . Parts Stripped . | . . . . Power Chain Reactions . | . . . . Alert | -11 -10 -9 -8 ------- Run | Yrd Mat Mat Mat Peak Influence 447 | . 30 323 447 Initial 135 | . . 12 135 Average 153 | . 14 90 260 Maximum Alert Level 2 | . . 1 2 Low Security (%) 63 | 100 100 85 33 Level 1 30 | . . 14 54 Level 2 5 | . . . 11 Level 3 . | . . . . Level 4 . | . . . . Level 5 . | . . . . High Security . | . . . . Max Security . | . . . . Squads Dispatched 5 | . 1 4 . Investigation 1 | . . 1 . Extermination . | . . . . Reinforcement 4 | . 1 3 . Assault . | . . . . Garrison . | . . . . Intercept . | . . . . Searches Triggered . | . . . . Construction Impeded . | . . . . Haulers Reinforced . | . . . . Active Scanning Responses . | . . . . Cargo Convoy Interrupts . | . . . . Stealth | -11 -10 -9 -8 --------- Run | Yrd Mat Mat Mat Distress Signals 3 | . . 2 1 Communications Jammed . | . . . . Distress Signals . | . . . . Times Spotted 57 | . 6 29 22 Peak Tracking Total 19 | . 3 19 7 Tactical Retreats 5 | . . 1 4 Traps | -11 -10 -9 -8 ------- Run | Yrd Mat Mat Mat Traps Triggered 1 | . . 1 . Indirectly . | . . . . Trap Hack Attempts . | . . . . Triggered . | . . . . Disarmed . | . . . . Reprogrammed . | . . . . Reused . | . . . . Traps Extracted . | . . . . Installed . | . . . . Triggered 1 | . . . 1 Machines | -11 -10 -9 -8 ---------- Run | Yrd Mat Mat Mat Machines Disabled 2 | . . 1 1 Max in Single Turn 1 | . . 1 1 Machines Repaired . | . . . . Machines Dismantled . | . . . . Machines Sabotaged . | . . . . Overloaded Fab Kills . | . . . . Hacking | -11 -10 -9 -8 --------- Run | Yrd Mat Mat Mat Machines Accessed 4 | . . 2 2 Terminals 4 | . . 2 2 Fabricators . | . . . . Repair Stations . | . . . . Recycling Units . | . . . . Scanalyzers . | . . . . Garrison Access . | . . . . Total Hacks 6 | . . 3 3 Successful 3 | . . . 3 Failed 3 | . . 3 . Catastrophic 1 | . . 1 . Database Lockouts . | . . . . Manual . | . . . . Terminals 6 | . . 3 3 Fabricators . | . . . . Repair Stations . | . . . . Recycling Units . | . . . . Scanalyzers . | . . . . Garrison Access . | . . . . Terminal Hacks 3 | . . . 3 Emergency Access Points 1 | . . . 1 Alert Level 1 | . . . 1 Locate Traps 1 | . . . 1 Fabricator Hacks . | . . . . Repair Station Hacks . | . . . . Recycling Unit Hacks . | . . . . Scanalyzer . | . . . . Garrison Access Hacks . | . . . . Unauthorized Hacks . | . . . . Terminals . | . . . . Fabricators . | . . . . Repair Stations . | . . . . Recycling Units . | . . . . Scanalyzers . | . . . . Garrison Access . | . . . . Data Cores Recovered . | . . . . Used . | . . . . Hacking Detections 1 | . . 1 . Full Trace Events . | . . . . Feedback Events . | . . . . Feedback Blocked . | . . . . Robot Schematics Acquired . | . . . . Robots Built . | . . . . Authchips . | . . . . Time . | . . . . Total Robot Build Rating . | . . . . Part Schematics Acquired . | . . . . Parts Built . | . . . . Authchips . | . . . . Time . | . . . . Total Part Build Rating . | . . . . Parts Repaired . | . . . . Time . | . . . . Parts Recycled . | . . . . Recycled Matter . | . . . . Retrieved Matter . | . . . . Retrieved Components . | . . . . Parts Scanalyzed . | . . . . Part Schematics Acquired . | . . . . Parts Damaged . | . . . . Bothacking | -11 -10 -9 -8 ------------ Run | Yrd Mat Mat Mat Used RIF Installer . | . . . . Robots Hacked . | . . . . Non-combat . | . . . . Combat . | . . . . Robot Hacks Applied . | . . . . Relay Couplers Released . | . . . . Fabnet Peak Effective % . | . . . . Robots Rewired . | . . . . Allies Hacked . | . . . . Hacks Repelled . | . . . . Allies | -11 -10 -9 -8 -------- Run | Yrd Mat Mat Mat Total Allies . | . . . . Largest Group . | . . . . Highest-Rated Group . | . . . . Highest-Rated Ally . | . . . . Total Orders . | . . . . Ally Attacks . | . . . . Total Damage . | . . . . Kills . | . . . . Allies Corrupted . | . . . . Allies Melted . | . . . . Intel | -11 -10 -9 -8 ------- Run | Yrd Mat Mat Mat Robot Analysis Total . | . . . . Derelict Logs Recovered . | . . . . Drone Launches . | . . . . Drone Recoveries . | . . . . Exploration | -11 -10 -9 -8 ------------- Run | Yrd Mat Mat Mat Turns Passed 970 | 65 233 176 496 Spaces Moved 718 | 51 210 240 217 Core 53 | 7 . 14 32 Treads 181 | . . . 181 Legs 4 | . . . 4 Wheels 254 | 44 210 . . Hover 226 | . . 226 . Flight . | . . . . Fastest Speed 48 | 50 100 48 100 Average Speed 102 | 93 100 55 157 Slowest Speed 300 | 100 100 150 300 Overloaded Moves . | . . . . Propulsion Burnouts . | . . . . Robots Hopped . | . . . . Cave-ins Triggered . | . . . . Exploration Rate (%) 26 | 4 43 33 27 Regions Visited 3 Branch Regions . Pre-discovered Areas . | . . . . Known Exits Taken . | . . . . Unknown Exits Taken 3 | 1 1 1 . Scrap Searched . | . . . . Spaces Dug 6 | . . 6 . Terrain Destroyed 27 | . . 23 4 Melee . | . . . . Projectile 4 | . . . 4 AOE 23 | . . 23 . Terrain Rammed . | . . . . Walls Destroyed . | . . . . Machines Disabled . | . . . . Actions | -11 -10 -9 -8 --------- Run | Yrd Mat Mat Mat Total 874 | 68 230 262 314 Wait 21 | . 1 . 20 Move 715 | 50 209 239 217 Hop . | . . . . Pick Up 29 | 12 6 3 8 Fast Attach 5 | . 4 1 . Attach 25 | 6 . 3 16 Detach 1 | . . . 1 Swap 3 | . 1 2 . Drop 8 | . 7 . 1 Fire 41 | . 1 3 37 Melee 26 | . 1 11 14 Ram . | . . . . Kick . | . . . . Crush . | . . . . Escape Stasis . | . . . . Rewire . | . . . . Trap . | . . . . Miscellaneous . | . . . . Route ------- -11/Scrapyard -10/Materials (discovered 2 exits: *Mat / [*Min]) -9/Materials -8/Materials History --------- Turn | Location | Event 27 | -11/Scrapyard | Discovered new exit (range 14) 66 | -11/Scrapyard | Entered Materials 204 | -10/Materials | Discovered new exit (range 12) 270 | -10/Materials | Discovered new exit (range 5) 299 | -10/Materials | Entered another Materials area 299 | -9/Materials | Evolved 2 slots: Propulsion x2 324 | -9/Materials | Build established: Mutant 456 | -9/Materials | Core integrity fell below 50% 467 | -9/Materials | Core integrity fell below 20% 472 | -9/Materials | Discovered new exit (range 3) 474 | -9/Materials | Destroyed 7 combat bots 475 | -9/Materials | Entered another Materials area 475 | -8/Materials | Evolved 2 slots: Power x1, Utility x1 484 | -8/Materials | Lost 8 parts (1p4n1u2w) 907 | -8/Materials | Core integrity fell below 50% 949 | -8/Materials | Core integrity fell below 20% 971 | -8/Materials | Destroyed by Y-45 Defender with Heavy Assault Rifle Last Messages --------------- 00916_ G-47 Trooper destroyed. 00919_ Imp. Treads destroyed. 00922_ Acquired Lgt. Nuclear Core. 00923_ R-06 Scavenger collects Aluminum Leg. 00925_ Flail destroyed. 00925_ R-06 Scavenger collects Particle Gun. 00926_ Acquired Aluminum Leg. 00933_ Adv. Targeting Computer destroyed. 00937_ Aluminum Leg severed. 00937_ >> Machine Analyzer network decryption results: 00937_ Terminal x1 00942_ R-06 Scavenger collects Aluminum Leg. 00945_ K-01 Serf collects debris. 00948_ Critical hit (Burn: +37). 00948_ Particle Cannon destroyed. 00949_ K-01 Serf collects debris. 00952_ Critical hit (Burn: +37). 00953_ Lgt. Nuclear Core destroyed. 00968_ Critical hit (Burn: +37). 00971_ Sml. Storage Unit destroyed. Map ----- +----------------------------------------------------+ | ??????????????????????T????? #?????????????# | | ????????????????????????????? ############### | | ???????????????????????????????# | | ???????????????????????????????# | | ??????????????????????#######??# | | ??????????????????????# #### | | ??????????????????????# | | ??????????????????????# ### ########### | | ??????????????????????# #?#%#?????????? | | ??????????????????????# ##### ##?#[##????????? | | ??????????????????????## ##???#+#??#%##????????? | | ???????????????????????# #?? #??#%##????????? | | ???????????????????????# # """ #??#%#?????????? | | ???????????????????????# + """ #??#^#?????????? | | ???????????????????????# g # """ #??# #?????????? | | ???????????????????????# #? +?? #?????????? | | ???????????????????????# Y#?? ! #?? #?????????? | | ???????????????????????# #??#####?? #?????????? | | ???????????????????????# #????????? +?????"T"?? | | ???????????????????????# #????????? #?????"""?? | | ???????????????????????# #?????????# ??????????? | | ???????????????????????# l#?????????? ??????????? | | ???????????????????????#k #?????????? ??????????? | | ???????????????????????# #?????????? ??????????? | | ???????????????????????# #?????????? ??????????? | | ???????????????????????# @ #?????????? ??????????? | | ???????????????????????# u#?????????????????????? | | ???????????????????????# +?????????????????????? | | ???????????????????????# #?????????????????????? | | ???????????????????????# #?????????????????????? | | ???????????????????????# #?????????????????????? | | ??????????????????????? ?????????????????????? | | ??????????????????????? ?????????????????????? | | ?????????????????????? ?????????????????????? | | ??????????????????????###+###????????????????????? | | ?????????????????????????????????????????????????? | | ?????????????????????????????????????????????????? | | ?????????????????????????????????????????????????? | | ?????????????????????????????????????????????????? | | ?????????????????????????????????????????????????? | | ?????????????????????????????????????????????????? | | ?????????????????????????????????????????????????? | | ?????????????????????????????????????????????????? | | ?????????????????????????????????????????????????? | | ?????????????????????????????????????????????????? | | ?????????????????????????????????????????????????? | | ?????????????????????????????????????????????????? | | ?????????????????????????????????????????????????? | | ?????????????????????????????????????????????????? | | ?????????????????????????????????????????????????? | +----------------------------------------------------+ Best States ------------- Heat Dissipation 31 Energy Generation 14 Energy Capacity 250 Matter Stores 300 Matter Capacity 300 Sight Range 18 Terrain Scan Density 10 Propulsion Shielding 33 Evasion (%) 55 Targeting Accuracy 8 Recoil Reduction 3 Item Schematics ----------------- None Robot Schematics ------------------ None Fabricated ------------ Nothing Alien Tech Used ----------------- None Achievements -------------- None Challenges ------------ None Game ------ Seed SurveybotBiocellTendrils Manual? 0 Play Time 00:14:38 Cumulative 130.1 hours Start 2024.08.22 @ 16:10:40 End 2024.08.22 @ 16:25:28 Sessions 1 Manual Loads 0 Difficulty Rogue Special Mode None Game No. 181 Rogue 181 Adventurer 0 Explorer 0 Win Type - Total 0 Types 0/0/0/0/0/0/0/0/0 Lore% 31 Gallery% 58 Achievement% 39 Wizard Run 0 Options --------- Layout 0 ASCII 0 Keyboard 0 Movement Mouse Keybinds 0 Fullscreen 1 Font 24/Smallcaps Map View 76x50 Zoom Use 0% Tactical HUD 1 Map Filters NONE Filters NONE Steam 1 RUN: aca3f318-4de3-45f7-b497-bb02688b9c38